lending/lending_fUSD_20250122
["ID","MTS","AMOUNT","RATE_DAILY","PERIOD"]
[350005796,1737562240532,-500.0,0.00020912,2]
[350005797,1737562240541,-980.01,0.00020912,2]
[350005798,1737562240551,-500.0,0.00020912,2]
[350005799,1737562240561,-550.13158576,0.00020913,2]
[350005800,1737562240571,-200.0,0.00020936,2]
[350005801,1737562240580,-369.08426456,0.00020939,2]
[350005802,1737562240589,-888.38,0.00020962,2]
[350005803,1737562240604,-736.86,0.00020962,2]
[350005804,1737562240614,-500.0,0.00020962,2]
[350005805,1737562240623,-500.0,0.00020962,2]
[350005806,1737562240633,-657.92,0.00020962,2]
[350005807,1737562240642,-500.0,0.00020962,2]
[350005808,1737562240651,-500.0,0.00020962,2]
[350005809,1737562240660,-515.04,0.00020962,2]
[350005810,1737562240670,-500.0,0.00020962,2]
[350005811,1737562240680,-500.0,0.00020963,2]
[350005812,1737562240689,-270.87,0.00020999,2]
[350005813,1737562240700,-700.0,0.00021,2]
[350005814,1737562240710,-210.10702633,0.00021011,2]
[350005815,1737562240719,-1027.7,0.00021057,2]
[350005816,1737562240728,-659.98,0.00021057,2]
[350005817,1737562240738,-1613.38,0.00021057,2]
[350005818,1737562240747,-627.91,0.00021057,2]
[350005819,1737562240756,-1613.72,0.00021057,2]
[350005820,1737562240765,-1119.6,0.00021057,2]
[350005821,1737562240774,-863.99,0.00021057,2]
[350005822,1737562240784,-1269.95,0.00021057,2]
[350005823,1737562240793,-1735.18,0.00021057,2]
[350005824,1737562240803,-500.0,0.00021057,2]
[350005825,1737562240812,-975.45,0.00021057,2]
[350005826,1737562240822,-1463.56,0.00021057,2]
[350005827,1737562240831,-1003.26,0.00021057,2]
[350005828,1737562240840,-570.38,0.00021057,2]
[350005829,1737562240850,-905.95,0.00021057,2]
[350005830,1737562240860,-584.93,0.00021057,2]
[350005831,1737562240869,-1118.75,0.00021057,2]
[350005832,1737562240879,-2432.23,0.00021057,2]
[350005833,1737562240889,-594.62,0.00021057,2]
[350005834,1737562240899,-500.0,0.00021057,2]
[350005835,1737562240908,-500.0,0.00021057,2]
[350005836,1737562240917,-500.0,0.00021057,2]
[350005837,1737562240926,-1697.78,0.00021057,2]
[350005838,1737562240936,-696.37,0.00021057,2]
[350005839,1737562240947,-3279.37,0.00021057,2]
[350005840,1737562240957,-1139.03,0.00021057,2]
[350005841,1737562240967,-953.46916084,0.00021072,2]
[350005842,1737562240976,-369.08426456,0.00021076,2]
[350005843,1737562240986,-169.97,0.00021089,2]
[350005844,1737562240996,-655.562074,0.00021135,2]
[350005845,1737562241007,-755.32,0.00021135,2]
[350005846,1737562241017,-1997.72,0.00021135,2]
[350005847,1737562241027,-500.0,0.00021135,2]
[350005848,1737562241036,-968.77,0.00021135,2]
[350005849,1737562241046,-931.3127,0.00021135,2]
[350005850,1737562241056,-500.0,0.00021135,2]
[350005851,1737562241065,-500.0,0.00021135,2]
[350005852,1737562241075,-531.19,0.00021135,2]
[350005853,1737562241085,-1137.49,0.00021135,2]
[350005854,1737562241095,-845.5,0.00021135,2]
[350005855,1737562241104,-909.3,0.00021135,2]
[350005856,1737562241114,-1290.97,0.00021135,2]
[350005857,1737562241123,-946.34,0.00021135,2]
[350005858,1737562241133,-1602.41,0.00021135,2]
[350005859,1737562241142,-1025.96,0.00021135,2]
[350005860,1737562241152,-692.03,0.00021135,2]
[350005861,1737562241163,-2673.85,0.00021135,2]
[350005862,1737562241174,-2069.64,0.00021135,2]
[350005863,1737562241184,-1412.17,0.00021135,2]
[350005864,1737562241193,-923.65,0.00021135,2]
[350005865,1737562241204,-2300.71,0.00021135,2]
[350005866,1737562241214,-2775.47,0.00021135,2]
[350005867,1737562241225,-528.22,0.00021135,2]
[350005868,1737562241235,-1219.61,0.00021135,2]
[350005869,1737562241246,-1240.55,0.00021135,2]
[350005870,1737562241255,-2988.57,0.00021135,2]
[350005871,1737562241264,-1053.27,0.00021135,2]
[350005872,1737562241274,-500.0,0.00021137,2]
[350005873,1737562241283,-500.0,0.00021137,2]
[350005874,1737562241293,-500.0,0.00021137,2]
[350005875,1737562241302,-603.8,0.00021137,2]
[350005876,1737562241312,-699.39,0.00021137,2]
[350005877,1737562241322,-500.0,0.00021137,2]
[350005878,1737562241332,-508.13027056,0.00021137,2]
[350005879,1737562241341,-804.55,0.00021137,2]
[350005880,1737562241350,-500.0,0.00021137,2]
[350005881,1737562241360,-500.0,0.00021137,2]
[350005882,1737562241370,-527.51302907,0.00021137,2]
[350005883,1737562241379,-500.0,0.00021137,2]
[350005884,1737562241389,-595.08,0.00021137,2]
[350005885,1737562241398,-605.8,0.00021137,2]
[350005886,1737562241408,-500.0,0.00021137,2]
[350005887,1737562241418,-685.56,0.00021137,2]
[350005888,1737562241427,-500.0,0.00021137,2]
[350005889,1737562241436,-500.0,0.00021137,2]
[350005890,1737562241446,-500.0,0.00021137,2]
[350005891,1737562241456,-500.0,0.00021137,2]
[350005892,1737562241465,-798.59,0.00021137,2]
[350005893,1737562241475,-500.0,0.00021137,2]
[350005894,1737562241484,-500.0,0.00021137,2]
[350005895,1737562241494,-500.0,0.00021137,2]
[350005896,1737562241503,-500.0,0.00021137,2]
[350005897,1737562241513,-500.0,0.00021137,2]
[350005898,1737562241522,-500.0,0.00021137,2]
[350005899,1737562241532,-888.45,0.00021137,2]
[350005900,1737562241541,-500.0,0.00021137,2]
[350005901,1737562241550,-500.0,0.00021137,2]
[350005902,1737562241560,-500.0,0.00021137,2]
[350005903,1737562241569,-500.0,0.00021137,2]
[350005904,1737562241578,-500.0,0.00021137,2]
[350005905,1737562241589,-346.0970205,0.00021137,2]
[350005906,1737562241599,-744.52,0.00021137,2]
[350005907,1737562241608,-500.0,0.00021137,2]
[350005908,1737562241618,-860.64,0.00021137,2]
[350005909,1737562241627,-500.0,0.00021137,2]
[350005910,1737562241636,-500.0,0.00021137,2]
[350005911,1737562241646,-500.0,0.00021137,2]
[350005912,1737562241656,-699.32,0.00021137,2]
[350005913,1737562241665,-500.0,0.00021137,2]
[350005914,1737562241674,-500.0,0.00021137,2]
[350005915,1737562241684,-500.0,0.00021137,2]
[350005916,1737562241693,-995.44,0.00021137,2]
[350005917,1737562241704,-500.0,0.00021137,2]
[350005918,1737562241714,-500.0,0.00021137,2]
[350005919,1737562241724,-682.01,0.00021137,2]
[350005920,1737562241733,-500.0,0.00021137,2]
[350005921,1737562241743,-500.0,0.00021137,2]
[350005922,1737562241752,-500.0,0.00021137,2]
[350005923,1737562241761,-746.69,0.00021137,2]
[350005924,1737562241771,-933.18,0.00021137,2]
[350005925,1737562241781,-806.68,0.00021137,2]
[350005926,1737562241790,-500.0,0.00021137,2]
[350005927,1737562241800,-500.0,0.00021137,2]
[350005928,1737562241809,-500.0,0.00021137,2]
[350005929,1737562241819,-500.0,0.00021137,2]
[350005930,1737562241829,-637.91,0.00021137,2]
[350005931,1737562241838,-504.5609027,0.00021137,2]
[350005932,1737562241848,-800.87,0.00021137,2]
[350005933,1737562241857,-729.0,0.00021137,2]
[350005934,1737562241866,-504.58204553,0.00021137,2]
[350005935,1737562241876,-612.98,0.00021137,2]
[350005936,1737562241885,-500.0,0.00021137,2]
[350005937,1737562241894,-500.0,0.00021137,2]
[350005938,1737562241904,-1125.41,0.00021137,2]
[350005939,1737562241913,-500.0,0.00021137,2]
[350005940,1737562241924,-500.0,0.00021137,2]
[350005941,1737562241935,-500.0,0.00021137,2]
[350005942,1737562241945,-500.0,0.00021137,2]
[350005943,1737562241956,-629.05,0.00021137,2]
[350005944,1737562241965,-1117.77,0.00021137,2]
[350005945,1737562241975,-634.5,0.00021137,2]
[350005946,1737562241984,-500.0,0.00021137,2]
[350005947,1737562241994,-1573.39,0.00021137,2]
[350005948,1737562242004,-500.0,0.00021137,2]
[350005949,1737562242013,-648.38,0.00021137,2]
[350005950,1737562242022,-630.78,0.00021137,2]
[350005951,1737562242031,-1648.48,0.00021137,2]
[350005952,1737562242041,-500.0,0.00021137,2]
[350005953,1737562242050,-762.04,0.00021137,2]
[350005954,1737562242059,-500.0,0.00021137,2]
[350005955,1737562242068,-500.0,0.00021137,2]
[350005956,1737562242077,-929.37,0.00021137,2]
[350005957,1737562242087,-500.0,0.00021137,2]
[350005958,1737562242097,-770.44,0.00021137,2]
[350005959,1737562242108,-1939.91,0.00021137,2]
[350005960,1737562242118,-2752.47,0.00021137,2]
[350005961,1737562242128,-1175.72,0.00021137,2]
[350005962,1737562242138,-735.2,0.00021137,2]
[350005963,1737562242148,-1617.33,0.00021137,2]
[350005964,1737562242160,-3171.39,0.00021137,2]
[350005965,1737562242171,-500.0,0.00021137,2]
[350005966,1737562242181,-662.96,0.00021137,2]
[350005967,1737562242191,-1057.58,0.00021137,2]
[350005968,1737562242203,-500.0,0.00021137,2]
[350005969,1737562242214,-950.45,0.00021137,2]
[350005970,1737562242223,-500.0,0.00021137,2]
[350005971,1737562242233,-1271.09,0.00021137,2]
[350005972,1737562242243,-500.0,0.00021137,2]
[350005973,1737562242252,-500.0,0.00021137,2]
[350005974,1737562242262,-514.76,0.00021137,2]
[350005975,1737562242272,-500.0,0.00021137,2]
[350005976,1737562242282,-902.88,0.00021137,2]
[350005977,1737562242292,-1506.37,0.00021137,2]
[350005978,1737562242301,-500.0,0.00021137,2]
[350005979,1737562242311,-1263.79,0.00021137,2]
[350005980,1737562242322,-714.93,0.00021137,2]
[350005981,1737562242332,-500.0,0.00021138,2]
[350005982,1737562242343,-882.69,0.00021138,2]
[350005983,1737562242354,-500.0,0.00021138,2]
[350005984,1737562242363,-500.0,0.00021138,2]
[350005985,1737562242373,-928.8,0.00021138,2]
[350005986,1737562242382,-1571.94,0.00021138,2]
[350005987,1737562242393,-818.9,0.00021138,2]
[350005988,1737562242403,-1003.25,0.00021138,2]
[350005989,1737562242413,-945.0,0.00021138,2]
[350005990,1737562242423,-1252.55,0.00021138,2]
[350005991,1737562242433,-541.06,0.00021138,2]
[350005992,1737562242444,-2719.05,0.00021138,2]
[350005993,1737562242458,-5497.74,0.00021138,2]
[350005994,1737562242468,-500.0,0.00021138,2]
[350005995,1737562242478,-906.89,0.00021138,2]
[350005996,1737562242488,-843.49,0.00021138,2]
[350005997,1737562242498,-907.57,0.00021138,2]
[350005998,1737562242509,-2046.53,0.00021138,2]
[350005999,1737562242520,-500.0,0.00021138,2]
[350006000,1737562242530,-926.52,0.00021138,2]
[350006001,1737562242540,-1053.09,0.00021138,2]
[350006002,1737562242549,-1151.79,0.00021138,2]
[350006003,1737562242559,-500.0,0.00021138,2]
[350006004,1737562242569,-1000.0,0.00021138,2]
[350006005,1737562242579,-1037.09,0.00021138,2]
[350006006,1737562242589,-500.0,0.00021138,2]
[350006007,1737562242599,-1781.74,0.00021138,2]
[350006008,1737562242609,-1725.02,0.00021138,2]
[350006009,1737562242620,-500.0,0.00021139,2]
[350006010,1737562242630,-500.0,0.00021139,2]
[350006011,1737562242639,-500.0,0.00021139,7]
[350006012,1737562242650,-500.97181297,0.00021139,2]
[350006013,1737562242659,-500.0,0.00021139,2]
[350006014,1737562242670,-500.0,0.00021139,2]
[350006015,1737562242680,-500.0,0.00021139,2]
[350006016,1737562242690,-500.0,0.00021139,2]
[350006017,1737562242704,-500.0,0.00021139,2]
[350006018,1737562242714,-500.0,0.00021139,2]
[350006019,1737562242724,-500.0,0.00021139,2]
[350006020,1737562242735,-500.0,0.00021154,2]
[350006021,1737562242745,-500.0,0.00021178,2]
[350006022,1737562242756,-552.87,0.00021186,2]
[350006023,1737562242766,-500.0,0.00021186,2]
[350006024,1737562242776,-500.7,0.00021186,2]
[350006025,1737562242786,-500.0,0.00021186,2]
[350006026,1737562242796,-500.0,0.00021186,2]
[350006027,1737562242806,-500.0,0.00021186,2]
[350006028,1737562242816,-500.0,0.00021186,2]
[350006029,1737562242827,-517.23,0.00021186,2]
[350006030,1737562242837,-500.0,0.00021186,2]
[350006031,1737562242848,-500.0,0.00021186,2]
[350006032,1737562242858,-500.0,0.00021186,2]
[350006033,1737562242868,-500.0,0.00021186,2]
[350006034,1737562242878,-500.0,0.00021186,2]
[350006035,1737562242888,-500.0,0.00021186,2]
[350006036,1737562242898,-500.0,0.00021186,2]
[350006037,1737562242907,-500.0,0.00021186,2]
[350006038,1737562242917,-500.0,0.00021186,2]
[350006039,1737562242927,-500.0,0.00021186,2]
[350006040,1737562242937,-500.0,0.00021186,2]
[350006041,1737562242946,-650.22,0.00021186,2]
[350006042,1737562242959,-500.0,0.00021186,2]
[350006044,1737562242969,-500.0,0.00021186,2]
[350006045,1737562242979,-532.92,0.00021186,2]
[350006046,1737562242989,-500.0,0.00021186,2]
[350006047,1737562242999,-500.0,0.00021186,2]
[350006048,1737562243010,-500.0,0.00021186,2]
[350006049,1737562243019,-500.0,0.00021186,2]
[350006050,1737562243029,-500.0,0.00021186,2]
[350006051,1737562243040,-493.50548145,0.00021186,2]
[350006052,1737562243050,-500.0,0.00021186,2]
[350006053,1737562243060,-500.0,0.00021186,2]
[350006054,1737562243070,-500.0,0.00021186,2]
[350006055,1737562243081,-500.0,0.00021186,2]
[350006056,1737562243091,-562.21,0.00021186,2]
[350006057,1737562243101,-500.0,0.00021186,2]
[350006058,1737562243112,-500.0,0.00021186,2]
[350006059,1737562243123,-543.22,0.00021186,2]
[350006060,1737562243133,-715.79,0.00021186,2]
[350006061,1737562243143,-561.14,0.00021186,2]
[350006062,1737562243152,-879.98,0.00021186,2]
[350006063,1737562243165,-500.0,0.00021186,2]
[350006064,1737562243175,-500.0,0.00021186,2]
[350006065,1737562243185,-500.0,0.00021186,2]
[350006066,1737562243196,-500.0,0.00021186,2]
[350006067,1737562243211,-500.0,0.00021186,2]
[350006068,1737562243222,-500.0,0.00021186,2]
[350006069,1737562243233,-890.09,0.00021186,2]
[350006070,1737562243244,-500.0,0.00021186,2]
[350006071,1737562243254,-624.08,0.00021186,2]
[350006072,1737562243265,-801.09,0.00021186,2]
[350006073,1737562243275,-500.0,0.00021186,2]
[350006074,1737562243285,-500.0,0.00021186,2]
[350006075,1737562243296,-500.0,0.00021186,2]
[350006076,1737562243306,-500.0,0.00021186,2]
[350006077,1737562243316,-500.0,0.00021186,2]
[350006078,1737562243326,-509.55,0.00021186,2]
[350006079,1737562243336,-500.0,0.00021186,2]
[350006080,1737562243346,-500.0,0.00021186,2]
[350006081,1737562243358,-500.0,0.00021186,2]
[350006082,1737562243367,-553.94,0.00021186,2]
[350006083,1737562243377,-500.0,0.00021186,2]
[350006084,1737562243386,-500.0,0.00021186,2]
[350006085,1737562243396,-513.69,0.00021186,2]
[350006086,1737562243406,-500.0,0.00021186,2]
[350006087,1737562243416,-783.8,0.00021186,2]
[350006088,1737562243426,-500.0,0.00021186,2]
[350006089,1737562243437,-500.0,0.00021186,2]
[350006090,1737562243452,-980.01,0.00021186,2]
[350006091,1737562243462,-500.0,0.00021186,2]
[350006092,1737562243471,-369.08426456,0.00021213,2]
[350006093,1737562243481,-210.10702633,0.00021233,2]
[350006094,1737562243491,-500.0,0.00021235,2]
[350006095,1737562243501,-888.38,0.00021236,2]
[350006096,1737562243510,-736.86,0.00021236,2]
[350006097,1737562243521,-500.0,0.00021236,2]
[350006098,1737562243530,-500.0,0.00021236,2]
[350006099,1737562243540,-657.92,0.00021236,2]
[350006100,1737562243550,-500.0,0.00021236,2]
[350006101,1737562243561,-500.0,0.00021236,2]
[350006102,1737562243572,-515.04,0.00021236,2]
[350006103,1737562243582,-500.0,0.00021236,2]
[350006104,1737562243592,-953.46916084,0.00021238,2]
[350006105,1737562243602,-150.0,0.000213,2]
[350006106,1737562243611,-1000.0,0.000213,2]
[350006107,1737562243621,-965.45,0.00021312,2]
[350006108,1737562243631,-1027.7,0.00021331,2]
[350006109,1737562243641,-659.98,0.00021331,2]
[350006110,1737562243651,-1613.38,0.00021331,2]
[350006111,1737562243660,-627.91,0.00021331,2]
[350006112,1737562243670,-1613.72,0.00021331,2]
[350006113,1737562243679,-1119.6,0.00021331,2]
[350006114,1737562243689,-863.99,0.00021331,2]
[350006115,1737562243701,-1269.95,0.00021331,2]
[350006117,1737562243711,-1735.18,0.00021331,2]
[350006118,1737562243721,-500.0,0.00021331,2]
[350006120,1737562243730,-975.45,0.00021331,2]
[350006135,1737562243740,-1463.56,0.00021331,2]
[350006139,1737562243905,-1003.26,0.00021331,2]
[350006141,1737562243919,-570.38,0.00021331,2]
[350006143,1737562243929,-905.95,0.00021331,2]
[350006145,1737562243941,-1118.75,0.00021331,2]
[350006147,1737562243957,-2432.23,0.00021331,2]
[350006149,1737562243968,-594.62,0.00021331,2]
[350006151,1737562243980,-500.0,0.00021331,2]
[350006153,1737562243991,-500.0,0.00021331,2]
[350006155,1737562244001,-500.0,0.00021331,2]
[350006157,1737562244012,-1697.78,0.00021331,2]
[350006159,1737562244024,-696.37,0.00021331,2]
[350006161,1737562244034,-3279.37,0.00021331,2]
[350006163,1737562244045,-1139.03,0.00021331,2]
[350006165,1737562244055,-369.08426456,0.00021351,2]
[350006167,1737562244065,-156.29628644,0.0002136,2]
[350006169,1737562244075,-456.0,0.00021377,2]
[350006170,1737562244085,-1603.11,0.000214,2]
[350006173,1737562244097,-953.46916084,0.00021403,2]
[350006174,1737562244109,-655.562074,0.00021409,2]
[350006176,1737562244119,-755.32,0.00021409,2]
[350006178,1737562244129,-1997.72,0.00021409,2]
[350006180,1737562244140,-500.0,0.00021409,2]
[350006182,1737562244150,-968.77,0.00021409,2]
[350006184,1737562244162,-931.3127,0.00021409,2]
[350006186,1737562244174,-500.0,0.00021409,2]
[350006189,1737562244185,-500.0,0.00021409,2]
[350006191,1737562244195,-531.19,0.00021409,2]
[350006193,1737562244208,-1137.49,0.00021409,2]
[350006195,1737562244218,-845.5,0.00021409,2]
[350006197,1737562244228,-909.3,0.00021409,2]
[350006198,1737562244238,-1290.97,0.00021409,2]
[350006200,1737562244250,-946.34,0.00021409,2]
[350006203,1737562244260,-1602.41,0.00021409,2]
[350006205,1737562244270,-1025.96,0.00021409,2]
[350006207,1737562244279,-692.03,0.00021409,2]
[350006209,1737562244288,-2673.85,0.00021409,2]
[350006211,1737562244298,-2069.64,0.00021409,2]
[350006212,1737562244307,-1412.17,0.00021409,2]
[350006214,1737562244316,-923.65,0.00021409,2]
[350006217,1737562244325,-2300.71,0.00021409,2]
[350006218,1737562244334,-2775.47,0.00021409,2]
[350006220,1737562244343,-528.22,0.00021409,2]
[350006222,1737562244352,-1219.61,0.00021409,2]
[350006224,1737562244361,-1240.55,0.00021409,2]
[350006226,1737562244370,-2988.57,0.00021409,2]
[350006228,1737562244380,-1053.27,0.00021409,2]
[350006230,1737562244389,-500.0,0.00021411,2]
[350006232,1737562244398,-290.71598522,0.00021411,2]
[350006234,1737562244407,-500.0,0.00021411,2]
[350006236,1737562244416,-603.8,0.00021411,2]
[350006238,1737562244426,-699.39,0.00021411,2]
[350006240,1737562244435,-500.0,0.00021411,2]
[350006242,1737562244445,-804.55,0.00021411,2]
[350006244,1737562244457,-500.0,0.00021411,2]
[350006247,1737562244468,-500.0,0.00021411,2]
[350006249,1737562244478,-500.0,0.00021411,2]
[350006251,1737562244487,-595.08,0.00021411,2]
[350006253,1737562244498,-605.8,0.00021411,2]
[350006255,1737562244508,-196.44523066,0.00021411,2]
[350006257,1737562244517,-685.56,0.00021411,2]
[350006259,1737562244526,-500.0,0.00021411,2]
[350006261,1737562244535,-500.0,0.00021411,2]
[350006263,1737562244547,-500.0,0.00021411,2]
[350006265,1737562244556,-275.05686908,0.00021411,2]
[350006267,1737562244565,-798.59,0.00021411,2]
[350006269,1737562244574,-500.0,0.00021411,2]
[350006270,1737562244583,-500.0,0.00021411,2]
[350006271,1737562244592,-500.0,0.00021411,2]
[350006273,1737562244601,-500.0,0.00021411,2]
[350006275,1737562244610,-500.0,0.00021411,2]
[350006277,1737562244619,-500.0,0.00021411,2]
[350006279,1737562244628,-888.45,0.00021411,2]
[350006281,1737562244637,-500.0,0.00021411,2]
[350006283,1737562244646,-500.0,0.00021411,2]
[350006285,1737562244655,-500.0,0.00021411,2]
[350006287,1737562244665,-500.0,0.00021411,2]
[350006289,1737562244673,-500.0,0.00021411,2]
[350006291,1737562244683,-744.52,0.00021411,2]
[350006293,1737562244692,-500.0,0.00021411,2]
[350006295,1737562244703,-860.64,0.00021411,2]
[350006296,1737562244713,-500.0,0.00021411,2]
[350006298,1737562244722,-500.0,0.00021411,2]
[350006300,1737562244731,-699.32,0.00021411,2]
[350006302,1737562244741,-500.0,0.00021411,2]
[350006304,1737562244750,-500.0,0.00021411,2]
[350006306,1737562244759,-500.0,0.00021411,2]
[350006308,1737562244768,-995.44,0.00021411,2]
[350006310,1737562244777,-500.0,0.00021411,2]
[350006312,1737562244787,-682.01,0.00021411,2]
[350006314,1737562244796,-500.0,0.00021411,2]
[350006316,1737562244806,-500.0,0.00021411,2]
[350006318,1737562244814,-500.0,0.00021411,2]
[350006320,1737562244824,-746.69,0.00021411,2]
[350006322,1737562244833,-933.18,0.00021411,2]
[350006324,1737562244842,-806.68,0.00021411,2]
[350006326,1737562244857,-553.14489405,0.00021411,2]
[350006328,1737562244867,-500.0,0.00021411,2]
[350006330,1737562244876,-500.0,0.00021411,2]
[350006332,1737562244885,-500.0,0.00021411,2]
[350006334,1737562244895,-637.91,0.00021411,2]
[350006336,1737562244904,-800.87,0.00021411,2]
[350006338,1737562244913,-729.0,0.00021411,2]
[350006340,1737562244922,-88.8722532,0.00021411,2]
[350006343,1737562244941,-524.1077468,0.00021411,2]
[350006345,1737562244953,-500.0,0.00021411,2]
[350006347,1737562244963,-500.0,0.00021411,2]
[350006349,1737562244973,-1125.41,0.00021411,2]
[350006350,1737562244982,-500.0,0.00021411,2]
[350006352,1737562244991,-500.0,0.00021411,2]
[350006354,1737562245005,-500.0,0.00021411,2]
[350006356,1737562245015,-629.05,0.00021411,2]
[350006358,1737562245024,-1117.77,0.00021411,2]
[350006360,1737562245035,-634.5,0.00021411,2]
[350006362,1737562245044,-500.0,0.00021411,2]
[350006364,1737562245056,-1573.39,0.00021411,2]
[350006366,1737562245065,-500.0,0.00021411,2]
[350006368,1737562245075,-648.38,0.00021411,2]
[350006371,1737562245085,-630.78,0.00021411,2]
[350006372,1737562245094,-1648.48,0.00021411,2]
[350006374,1737562245105,-500.0,0.00021411,2]
[350006376,1737562245115,-762.04,0.00021411,2]
[350006378,1737562245125,-500.0,0.00021411,2]
[350006380,1737562245135,-929.37,0.00021411,2]
[350006382,1737562245144,-500.0,0.00021411,2]
[350006384,1737562245154,-770.44,0.00021411,2]
[350006386,1737562245165,-1406.04408576,0.00021411,2]
[350006401,1737562245305,-345.50264046,0.00021411,2]
[350006404,1737562245324,-500.0,0.00020912,2]
[350006406,1737562245334,-188.36327378,0.00021411,2]
[350006407,1737562245343,-2752.47,0.00021411,2]
[350006409,1737562245352,-1175.72,0.00021411,2]
[350006411,1737562245362,-735.2,0.00021411,2]
[350006413,1737562245372,-1617.33,0.00021411,2]
[350006415,1737562245381,-3171.39,0.00021411,2]
[350006417,1737562245390,-500.0,0.00021411,2]
[350006419,1737562245399,-662.96,0.00021411,2]
[350006421,1737562245408,-1057.58,0.00021411,2]
[350006423,1737562245418,-500.0,0.00021411,2]
[350006425,1737562245427,-950.45,0.00021411,2]
[350006427,1737562245437,-500.0,0.00021411,2]
[350006429,1737562245446,-1271.09,0.00021411,2]
[350006431,1737562245459,-500.0,0.00021411,2]
[350006434,1737562245470,-500.0,0.00021411,2]
[350006436,1737562245480,-514.76,0.00021411,2]
[350006438,1737562245489,-500.0,0.00021411,2]
[350006440,1737562245498,-902.88,0.00021411,2]
[350006441,1737562245508,-1506.37,0.00021411,2]
[350006443,1737562245517,-500.0,0.00021411,2]
[350006445,1737562245526,-1263.79,0.00021411,2]
[350006447,1737562245535,-714.93,0.00021411,2]
[350006449,1737562245545,-500.0,0.00021412,2]
[350006451,1737562245554,-882.69,0.00021412,2]
[350006453,1737562245563,-500.0,0.00021412,2]
[350006455,1737562245572,-500.0,0.00021412,2]
[350006457,1737562245582,-928.8,0.00021412,2]
[350006459,1737562245591,-1571.94,0.00021412,2]
[350006461,1737562245600,-818.9,0.00021412,2]
[350006463,1737562245609,-1003.25,0.00021412,2]
[350006465,1737562245618,-945.0,0.00021412,2]
[350006467,1737562245627,-1252.55,0.00021412,2]
[350006469,1737562245636,-541.06,0.00021412,2]
[350006471,1737562245645,-2719.05,0.00021412,2]
[350006473,1737562245655,-5497.74,0.00021412,2]
[350006475,1737562245664,-500.0,0.00021412,2]
[350006477,1737562245673,-906.89,0.00021412,2]
[350006479,1737562245682,-843.49,0.00021412,2]
[350006481,1737562245691,-907.57,0.00021412,2]
[350006482,1737562245700,-2046.53,0.00021412,2]
[350006483,1737562245709,-500.0,0.00021412,2]
[350006484,1737562245718,-926.52,0.00021412,2]
[350006485,1737562245727,-1053.09,0.00021412,2]
[350006486,1737562245736,-1151.79,0.00021412,2]
[350006487,1737562245745,-500.0,0.00021412,2]
[350006488,1737562245754,-1000.0,0.00021412,2]
[350006489,1737562245763,-1037.09,0.00021412,2]
[350006490,1737562245772,-257.83024334,0.00021412,2]
[350006491,1737562245784,-242.16975666,0.00021412,2]